[Event "Live Chess"]
[Site "Chess.com"]
[Date "2023.05.20"]
[Round "-"]
[White "blunderabit"]
[Black "lateforthesky"]
[Result "0-1"]
[WhiteElo "1890"]
[BlackElo "2075"]
[TimeControl "300"]
[EndTime "12:12:01 PDT"]
[Termination "lateforthesky won on time"]

1. e4 {[%clk 0:04:51.5]} 1... c5 {[%clk 0:04:59]} 2. Nf3 {[%clk 0:04:47.3]} 2...
Nf6 {[%clk 0:04:58.1]} 3. Nc3 {[%clk 0:04:43.5]} 3... d5 {[%clk 0:04:53.9]} 4.
exd5 {[%clk 0:04:41.2]} 4... Nxd5 {[%clk 0:04:52.3]} 5. Bb5+ {[%clk 0:04:39.4]}
5... Bd7 {[%clk 0:04:50.3]} 6. Qe2 {[%clk 0:04:19]} 6... Nb4 {[%clk 0:04:47.2]}
7. Bxd7+ {[%clk 0:03:39.6]} 7... Qxd7 {[%clk 0:04:46.1]} 8. d3 {[%clk
0:03:38.5]} 8... N8c6 {[%clk 0:04:43.6]} 9. a3 {[%clk 0:03:34.4]} 9... Nd5
{[%clk 0:04:35]} 10. Ne4 {[%clk 0:03:14.8]} 10... Nd4 {[%clk 0:03:56.3]} 11.
Nxd4 {[%clk 0:03:09.4]} 11... cxd4 {[%clk 0:03:55.5]} 12. O-O {[%clk 0:02:58.4]}
12... e6 {[%clk 0:03:53.8]} 13. c4 {[%clk 0:02:51.3]} 13... dxc3 {[%clk
0:03:48.8]} 14. bxc3 {[%clk 0:02:49.3]} 14... Be7 {[%clk 0:03:47.4]} 15. c4
{[%clk 0:02:40.3]} 15... Nf6 {[%clk 0:03:46.3]} 16. Bb2 {[%clk 0:02:30.9]} 16...
Nxe4 {[%clk 0:03:41.7]} 17. Qxe4 {[%clk 0:02:28.6]} 17... O-O {[%clk 0:03:39.1]}
18. Qg4 {[%clk 0:01:45.6]} 18... g6 {[%clk 0:03:30.3]} 19. Rad1 {[%clk
0:01:36.1]} 19... f5 {[%clk 0:03:22.6]} 20. Qe2 {[%clk 0:01:28.5]} 20... Bf6
{[%clk 0:03:20.7]} 21. Rfe1 {[%clk 0:01:22.8]} 21... Bxb2 {[%clk 0:03:12.2]} 22.
Qxb2 {[%clk 0:01:21.4]} 22... Kf7 {[%clk 0:03:05.3]} 23. d4 {[%clk 0:00:54.4]}
23... Rfe8 {[%clk 0:03:02.3]} 24. c5 {[%clk 0:00:52]} 24... Re7 {[%clk
0:02:57.9]} 25. Qb3 {[%clk 0:00:35]} 25... Rd8 {[%clk 0:02:54.1]} 26. Qh3 {[%clk
0:00:29.4]} 26... Kg8 {[%clk 0:02:43.7]} 27. Qh4 {[%clk 0:00:26.2]} 27... Rde8
{[%clk 0:02:38.1]} 28. Qf6 {[%clk 0:00:23.2]} 28... Rf7 {[%clk 0:02:33.1]} 29.
Qe5 {[%clk 0:00:20.8]} 29... Rff8 {[%clk 0:02:14.8]} 30. Re3 {[%clk 0:00:19.4]}
30... Qd5 {[%clk 0:02:10.7]} 31. Qxd5 {[%clk 0:00:16.9]} 31... exd5 {[%clk
0:02:09.2]} 32. Rde1 {[%clk 0:00:16.4]} 32... Rxe3 {[%clk 0:02:06.9]} 33. Rxe3
{[%clk 0:00:15.9]} 33... Kf7 {[%clk 0:02:05.8]} 34. Re5 {[%clk 0:00:15.1]} 34...
Rd8 {[%clk 0:02:05]} 35. Kf1 {[%clk 0:00:13.6]} 35... Kf6 {[%clk 0:02:00]} 36.
Ke2 {[%clk 0:00:11.4]} 36... Rd7 {[%clk 0:01:57.5]} 37. Kd3 {[%clk 0:00:10.2]}
37... g5 {[%clk 0:01:50.3]} 38. Kc3 {[%clk 0:00:07.1]} 38... h5 {[%clk
0:01:48.8]} 39. g3 {[%clk 0:00:04.5]} 39... h4 {[%clk 0:01:43.9]} 40. gxh4
{[%clk 0:00:02.6]} 40... gxh4 {[%clk 0:01:41.7]} 41. Kd3 {[%clk 0:00:01.9]}
41... Kg5 {[%clk 0:01:38.8]} 42. Ke3 {[%clk 0:00:00.7]} 42... Rd8 {[%clk
0:01:36]} 0-1

[Event "Live Chess"]
[Site "Chess.com"]
[Date "2023.05.20"]
[Round "-"]
[White "Pablo_dmp"]
[Black "JackRudd"]
[Result "0-1"]
[WhiteElo "1867"]
[BlackElo "2480"]
[TimeControl "300"]
[EndTime "12:12:06 PDT"]
[Termination "JackRudd won by resignation"]

1. e4 {[%clk 0:04:59.4]} 1... c5 {[%clk 0:04:57.8]} 2. a3 {[%clk 0:04:58.3]}
2... Nc6 {[%clk 0:04:54.2]} 3. b4 {[%clk 0:04:57.1]} 3... cxb4 {[%clk
0:04:53.3]} 4. axb4 {[%clk 0:04:57]} 4... d5 {[%clk 0:04:52]} 5. exd5 {[%clk
0:04:50.9]} 5... Qxd5 {[%clk 0:04:50.2]} 6. Nc3 {[%clk 0:04:50.4]} 6... Qe5+
{[%clk 0:04:48]} 7. Qe2 {[%clk 0:04:47.6]} 7... Qxe2+ {[%clk 0:04:45.9]} 8. Bxe2
{[%clk 0:04:47.2]} 8... Nxb4 {[%clk 0:04:45.1]} 9. Nb5 {[%clk 0:04:42.2]} 9...
Nxc2+ {[%clk 0:04:43]} 10. Kd1 {[%clk 0:04:40.7]} 10... Nxa1 {[%clk 0:04:42.2]}
11. Nc7+ {[%clk 0:04:40]} 11... Kd8 {[%clk 0:04:41.4]} 12. Nxa8 {[%clk
0:04:39.9]} 12... Nb3 {[%clk 0:04:38.3]} 13. Ba3 {[%clk 0:04:33.2]} 13... Nf6
{[%clk 0:04:34.5]} 14. Bc4 {[%clk 0:04:26.7]} 14... Nd4 {[%clk 0:04:29.6]} 15.
Bxf7 {[%clk 0:04:20]} 15... e6 {[%clk 0:04:28.7]} 16. Bb2 {[%clk 0:04:03.2]}
16... Bc5 {[%clk 0:04:25.6]} 17. Bxd4 {[%clk 0:04:00.7]} 17... Bxd4 {[%clk
0:04:24.4]} 18. Nf3 {[%clk 0:03:59.9]} 18... Bxf2 {[%clk 0:04:21.2]} 19. Rf1
{[%clk 0:03:58.7]} 19... Bc5 {[%clk 0:04:19.8]} 20. Re1 {[%clk 0:03:56.1]} 20...
Ke7 {[%clk 0:04:17.3]} 21. Bxe6 {[%clk 0:03:53.9]} 21... Bxe6 {[%clk 0:04:15.4]}
22. Ng5 {[%clk 0:03:53.8]} 22... Rxa8 {[%clk 0:04:12.9]} 23. Nxe6 {[%clk
0:03:52.9]} 23... Kd6 {[%clk 0:04:08.5]} 24. Nxg7 {[%clk 0:03:49.4]} 24... Rg8
{[%clk 0:04:05.7]} 25. Nf5+ {[%clk 0:03:39.1]} 25... Kd7 {[%clk 0:04:04.4]} 26.
g3 {[%clk 0:03:30.5]} 26... a5 {[%clk 0:04:01.5]} 27. Re5 {[%clk 0:03:28.6]}
27... b6 {[%clk 0:04:00.4]} 28. d4 {[%clk 0:03:26.3]} 28... Bd6 {[%clk
0:03:59.4]} 29. Re2 {[%clk 0:03:19.9]} 29... Nd5 {[%clk 0:03:57.3]} 30. Rb2
{[%clk 0:03:08]} 30... Rf8 {[%clk 0:03:54.5]} 31. g4 {[%clk 0:03:02.9]} 31...
Bb4 {[%clk 0:03:53.3]} 32. h4 {[%clk 0:02:50.8]} 32... h5 {[%clk 0:03:48.8]} 0-1

[Event "Live Chess"]
[Site "Chess.com"]
[Date "2023.05.20"]
[Round "-"]
[White "zdanevych"]
[Black "jameskwong"]
[Result "0-1"]
[WhiteElo "1499"]
[BlackElo "2141"]
[TimeControl "300"]
[EndTime "12:12:12 PDT"]
[Termination "jameskwong won by resignation"]

1. d4 {[%clk 0:04:59]} 1... Nf6 {[%clk 0:04:57.9]} 2. c4 {[%clk 0:04:58.3]} 2...
e6 {[%clk 0:04:56.3]} 3. Nc3 {[%clk 0:04:56.4]} 3... Bb4 {[%clk 0:04:55.3]} 4.
a3 {[%clk 0:04:55.9]} 4... Bxc3+ {[%clk 0:04:53.6]} 5. bxc3 {[%clk 0:04:55.8]}
5... O-O {[%clk 0:04:51.8]} 6. Nf3 {[%clk 0:04:55.2]} 6... d5 {[%clk 0:04:44.9]}
7. Bg5 {[%clk 0:04:54]} 7... h6 {[%clk 0:04:41.9]} 8. Bh4 {[%clk 0:04:53.1]}
8... c5 {[%clk 0:04:30.7]} 9. cxd5 {[%clk 0:04:51.4]} 9... exd5 {[%clk
0:04:26.2]} 10. e3 {[%clk 0:04:49.5]} 10... Qa5 {[%clk 0:04:21.4]} 11. Qc2
{[%clk 0:04:19.4]} 11... Ne4 {[%clk 0:04:05.3]} 12. Rc1 {[%clk 0:04:16.2]} 12...
Qxa3 {[%clk 0:03:59.9]} 13. Bd3 {[%clk 0:04:14.5]} 13... Bf5 {[%clk 0:03:57.9]}
14. O-O {[%clk 0:04:09.4]} 14... c4 {[%clk 0:03:51.6]} 15. Bxe4 {[%clk
0:04:08.5]} 15... Bxe4 {[%clk 0:03:50.1]} 16. Qe2 {[%clk 0:04:03.8]} 16... Bd3
{[%clk 0:03:46.4]} 17. Qe1 {[%clk 0:03:57.2]} 17... Bxf1 {[%clk 0:03:41.8]} 18.
Qxf1 {[%clk 0:03:57.1]} 18... Nc6 {[%clk 0:03:39.7]} 19. Bg3 {[%clk 0:03:55.1]}
19... b5 {[%clk 0:03:26.6]} 20. Qe1 {[%clk 0:03:49.5]} 20... Rfe8 {[%clk
0:03:23]} 21. Ra1 {[%clk 0:03:48]} 21... Qe7 {[%clk 0:03:18.5]} 22. Ra6 {[%clk
0:03:44.2]} 22... Qb7 {[%clk 0:03:16.2]} 23. Qa1 {[%clk 0:03:38.3]} 23... b4
{[%clk 0:03:14.1]} 24. cxb4 {[%clk 0:03:36.1]} 24... Nxb4 {[%clk 0:03:12.3]} 25.
Ra5 {[%clk 0:03:27.3]} 25... Rec8 {[%clk 0:03:07]} 26. h3 {[%clk 0:03:24.3]}
26... c3 {[%clk 0:03:04.6]} 0-1

[Event "Live Chess"]
[Site "Chess.com"]
[Date "2023.05.20"]
[Round "-"]
[White "LaupMiths"]
[Black "mikkyb4"]
[Result "1-0"]
[WhiteElo "1821"]
[BlackElo "1010"]
[TimeControl "300"]
[EndTime "12:12:21 PDT"]
[Termination "LaupMiths won by resignation"]

1. e4 {[%clk 0:04:57.4]} 1... g6 {[%clk 0:04:58.1]} 2. d4 {[%clk 0:04:55.5]}
2... Bg7 {[%clk 0:04:57.5]} 3. Nf3 {[%clk 0:04:54.4]} 3... d6 {[%clk 0:04:56.3]}
4. Bd3 {[%clk 0:04:51]} 4... Nf6 {[%clk 0:04:52.5]} 5. c3 {[%clk 0:04:49.5]}
5... e5 {[%clk 0:04:50.9]} 6. h3 {[%clk 0:04:47.8]} 6... O-O {[%clk 0:04:44.9]}
7. Be3 {[%clk 0:04:43.7]} 7... Nc6 {[%clk 0:04:41.4]} 8. O-O {[%clk 0:04:41.1]}
8... d5 {[%clk 0:04:40.2]} 9. dxe5 {[%clk 0:04:35.6]} 9... Nd7 {[%clk
0:04:34.4]} 10. exd5 {[%clk 0:04:27.8]} 10... Ncxe5 {[%clk 0:04:32.2]} 11. Nxe5
{[%clk 0:04:25.9]} 11... Bxe5 {[%clk 0:04:30.9]} 12. Bh6 {[%clk 0:04:21.1]}
12... Re8 {[%clk 0:04:27.7]} 13. f4 {[%clk 0:04:19.2]} 13... Bg7 {[%clk
0:04:25.3]} 14. Bxg7 {[%clk 0:04:17.2]} 14... Kxg7 {[%clk 0:04:23.7]} 15. f5
{[%clk 0:04:17.1]} 15... Ne5 {[%clk 0:04:15]} 16. fxg6 {[%clk 0:04:13.5]} 16...
fxg6 {[%clk 0:04:13.8]} 17. c4 {[%clk 0:04:09.6]} 17... Nxd3 {[%clk 0:04:12]}
18. Qxd3 {[%clk 0:04:08.1]} 18... Bf5 {[%clk 0:04:11]} 19. Qd4+ {[%clk
0:04:03.4]} 19... Kg8 {[%clk 0:04:05.9]} 20. Nc3 {[%clk 0:04:01.5]} 20... b6
{[%clk 0:03:52.5]} 21. Rf4 {[%clk 0:03:48.9]} 21... c5 {[%clk 0:03:50]} 22. dxc6
{[%clk 0:03:46.8]} 22... Qxd4+ {[%clk 0:03:48.8]} 23. Rxd4 {[%clk 0:03:46.6]}
23... Rac8 {[%clk 0:03:45.5]} 24. Rd7 {[%clk 0:03:35.3]} 24... Rxc6 {[%clk
0:03:33.2]} 25. Rxa7 {[%clk 0:03:32.5]} 25... Rxc4 {[%clk 0:03:29.2]} 26. Rd1
{[%clk 0:03:29.5]} 26... Rf4 {[%clk 0:03:12.2]} 27. Rd6 {[%clk 0:03:22.8]} 27...
Re1+ {[%clk 0:03:09.7]} 28. Kh2 {[%clk 0:03:21.5]} 28... Rf2 {[%clk 0:03:05.5]}
29. Rxb6 {[%clk 0:03:19.7]} 29... Rc1 {[%clk 0:02:59.6]} 30. Rb8+ {[%clk
0:03:18.1]} 30... Bc8 {[%clk 0:02:55.1]} 31. Rxc8+ {[%clk 0:03:17.2]} 31... Rf8
{[%clk 0:02:54.1]} 32. Rcc7 {[%clk 0:03:10.9]} 32... Rcf1 {[%clk 0:02:46.3]} 33.
Rg7+ {[%clk 0:03:07.8]} 33... Kh8 {[%clk 0:02:44]} 34. Rxh7+ {[%clk 0:03:07.7]}
1-0

[Event "Live Chess"]
[Site "Chess.com"]
[Date "2023.05.20"]
[Round "-"]
[White "Ayursworld"]
[Black "djw60"]
[Result "0-1"]
[WhiteElo "1372"]
[BlackElo "2114"]
[TimeControl "300"]
[EndTime "12:12:24 PDT"]
[Termination "djw60 won by checkmate"]

1. e4 {[%clk 0:04:59]} 1... g6 {[%clk 0:04:58.6]} 2. Nf3 {[%clk 0:04:57.3]} 2...
Bg7 {[%clk 0:04:58]} 3. d4 {[%clk 0:04:55.6]} 3... d6 {[%clk 0:04:57.1]} 4. Bc4
{[%clk 0:04:54.2]} 4... Nf6 {[%clk 0:04:55.2]} 5. Nc3 {[%clk 0:04:51.2]} 5...
O-O {[%clk 0:04:53.3]} 6. Bg5 {[%clk 0:04:49.1]} 6... Nxe4 {[%clk 0:04:50.1]} 7.
Nxe4 {[%clk 0:04:46.4]} 7... d5 {[%clk 0:04:49.1]} 8. Bxd5 {[%clk 0:04:43.7]}
8... Qxd5 {[%clk 0:04:47.3]} 9. Nc3 {[%clk 0:04:42]} 9... Qd6 {[%clk 0:04:35.7]}
10. O-O {[%clk 0:04:39.8]} 10... c6 {[%clk 0:04:30]} 11. Qd2 {[%clk 0:04:37.7]}
11... Nd7 {[%clk 0:04:25.7]} 12. Bh6 {[%clk 0:04:35.8]} 12... Nf6 {[%clk
0:04:22.6]} 13. Rfe1 {[%clk 0:04:18.8]} 13... Bg4 {[%clk 0:04:13]} 14. Bxg7
{[%clk 0:04:15.1]} 14... Kxg7 {[%clk 0:04:11.4]} 15. Ne5 {[%clk 0:04:11.3]}
15... Be6 {[%clk 0:04:07.2]} 16. h4 {[%clk 0:03:48.4]} 16... Rad8 {[%clk
0:04:04.7]} 17. Ne2 {[%clk 0:03:38.4]} 17... Qxe5 {[%clk 0:04:00.7]} 18. f4
{[%clk 0:03:32.5]} 18... Qh5 {[%clk 0:03:54.3]} 19. g3 {[%clk 0:03:27.6]} 19...
Qg4 {[%clk 0:03:44.8]} 20. Qe3 {[%clk 0:03:22.3]} 20... Bd5 {[%clk 0:03:35.8]}
21. Nc3 {[%clk 0:03:18.9]} 21... e6 {[%clk 0:03:29.3]} 22. Nxd5 {[%clk
0:03:16.3]} 22... exd5 {[%clk 0:03:27.4]} 23. Qf2 {[%clk 0:03:12.8]} 23... Rfe8
{[%clk 0:03:25.4]} 24. Rxe8 {[%clk 0:03:10.3]} 24... Rxe8 {[%clk 0:03:24.5]} 25.
Re1 {[%clk 0:03:08]} 25... Rxe1+ {[%clk 0:03:21.9]} 26. Qxe1 {[%clk 0:03:06.5]}
26... Ne4 {[%clk 0:03:21.2]} 27. Kg2 {[%clk 0:03:02.8]} 27... Qe6 {[%clk
0:03:14.7]} 28. Kf3 {[%clk 0:02:55.6]} 28... Ng5+ {[%clk 0:03:11.2]} 29. hxg5
{[%clk 0:02:48.5]} 29... Qxe1 {[%clk 0:03:09.5]} 30. Kg4 {[%clk 0:02:45.8]}
30... Qe2+ {[%clk 0:03:05.5]} 31. Kh3 {[%clk 0:02:44.7]} 31... Qxc2 {[%clk
0:03:04.2]} 32. b4 {[%clk 0:02:42.3]} 32... Qc4 {[%clk 0:03:02.4]} 33. a4 {[%clk
0:02:41.2]} 33... Qxd4 {[%clk 0:03:01.4]} 34. a5 {[%clk 0:02:39.9]} 34... Qd1
{[%clk 0:02:58.4]} 35. a6 {[%clk 0:02:34.1]} 35... Qh1+ {[%clk 0:02:53.8]} 36.
Kg4 {[%clk 0:02:32.3]} 36... f5+ {[%clk 0:02:51.4]} 37. gxf6+ {[%clk 0:02:29.1]}
37... Kxf6 {[%clk 0:02:50.4]} 38. axb7 {[%clk 0:02:22.8]} 38... h5# {[%clk
0:02:47.2]} 0-1

[Event "Live Chess"]
[Site "Chess.com"]
[Date "2023.05.20"]
[Round "-"]
[White "NatashaRegan"]
[Black "LiamClery2020"]
[Result "0-1"]
[WhiteElo "1855"]
[BlackElo "2086"]
[TimeControl "300"]
[EndTime "12:12:29 PDT"]
[Termination "LiamClery2020 won by resignation"]

1. e4 {[%clk 0:04:56.4]} 1... Nf6 {[%clk 0:04:59.9]} 2. e5 {[%clk 0:04:55.3]}
2... Nd5 {[%clk 0:04:59.3]} 3. d4 {[%clk 0:04:54.5]} 3... d6 {[%clk 0:04:58.3]}
4. c4 {[%clk 0:04:53.7]} 4... Nb6 {[%clk 0:04:57.8]} 5. Nc3 {[%clk 0:04:50.8]}
5... dxe5 {[%clk 0:04:56.6]} 6. d5 {[%clk 0:04:49.5]} 6... e6 {[%clk 0:04:54.1]}
7. Be3 {[%clk 0:04:37]} 7... Bb4 {[%clk 0:04:51.4]} 8. Bxb6 {[%clk 0:04:31.1]}
8... axb6 {[%clk 0:04:51.2]} 9. Qb3 {[%clk 0:04:19.7]} 9... Bxc3+ {[%clk
0:04:47.5]} 10. bxc3 {[%clk 0:04:13.3]} 10... Na6 {[%clk 0:04:46.9]} 11. Qb5+
{[%clk 0:04:03.8]} 11... Bd7 {[%clk 0:04:45.3]} 12. Qb3 {[%clk 0:03:58.5]} 12...
Nc5 {[%clk 0:04:44.5]} 13. Qc2 {[%clk 0:03:56.2]} 13... exd5 {[%clk 0:04:43.7]}
14. cxd5 {[%clk 0:03:54.8]} 14... O-O {[%clk 0:04:42]} 15. Nf3 {[%clk
0:03:51.4]} 15... Qf6 {[%clk 0:04:40]} 16. Bc4 {[%clk 0:03:44.8]} 16... Bg4
{[%clk 0:04:36.2]} 17. Nd2 {[%clk 0:03:40.1]} 17... e4 {[%clk 0:04:23]} 18. O-O
{[%clk 0:03:37.3]} 18... Rae8 {[%clk 0:04:19]} 19. Rae1 {[%clk 0:03:30.1]} 19...
Qg6 {[%clk 0:04:16.1]} 20. Kh1 {[%clk 0:03:17.9]} 20... Bf5 {[%clk 0:04:14.4]}
21. Qd1 {[%clk 0:03:13.3]} 21... Nd3 {[%clk 0:04:11.3]} 22. Re3 {[%clk
0:03:09.1]} 22... Bg4 {[%clk 0:03:59.6]} 23. Qb1 {[%clk 0:03:00.5]} 23... Nf4
{[%clk 0:03:51.7]} 24. Nxe4 {[%clk 0:02:54.1]} 24... Bf5 {[%clk 0:03:46.8]} 25.
Rg3 {[%clk 0:02:46.1]} 25... Bxe4 {[%clk 0:03:44.7]} 26. Rxg6 {[%clk 0:02:34.2]}
26... Bxb1 {[%clk 0:03:43.7]} 27. Rg4 {[%clk 0:02:23]} 27... Bd3 {[%clk
0:03:42.3]} 28. Rxf4 {[%clk 0:02:14.8]} 28... Bxf1 {[%clk 0:03:41.4]} 29. Bxf1
{[%clk 0:02:13.8]} 29... Re1 {[%clk 0:03:40.4]} 30. Kg1 {[%clk 0:02:12.8]} 30...
Ra1 {[%clk 0:03:39.4]} 31. f3 {[%clk 0:02:02.2]} 31... Re8 {[%clk 0:03:35.5]}
32. Kf2 {[%clk 0:01:55.8]} 32... Rxa2+ {[%clk 0:03:34.1]} 33. Kg3 {[%clk
0:01:54.8]} 33... Re1 {[%clk 0:03:29.3]} 34. Bc4 {[%clk 0:01:52.1]} 34... Ra8
{[%clk 0:03:10.8]} 35. d6 {[%clk 0:01:48.8]} 35... cxd6 {[%clk 0:03:09.8]} 36.
Rxf7 {[%clk 0:01:45.6]} 36... Kh8 {[%clk 0:03:09.2]} 37. Rxb7 {[%clk 0:01:43.3]}
37... Rc1 {[%clk 0:03:07.8]} 38. Bd5 {[%clk 0:01:36.5]} 38... Rd8 {[%clk
0:03:04]} 39. Rxb6 {[%clk 0:01:32.4]} 39... Rxc3 {[%clk 0:03:02.8]} 40. Rb7
{[%clk 0:01:27]} 40... Rc5 {[%clk 0:02:59.7]} 41. Be6 {[%clk 0:01:20.5]} 41...
d5 {[%clk 0:02:58.4]} 42. f4 {[%clk 0:01:15.3]} 42... d4 {[%clk 0:02:57.4]} 43.
f5 {[%clk 0:01:14.5]} 43... d3 {[%clk 0:02:52.8]} 44. Rb1 {[%clk 0:01:10.5]}
44... d2 {[%clk 0:02:50.7]} 45. Rd1 {[%clk 0:01:09.4]} 45... Rc1 {[%clk
0:02:50.2]} 0-1

[Event "Live Chess"]
[Site "Chess.com"]
[Date "2023.05.20"]
[Round "-"]
[White "TobyQuaite"]
[Black "manthanit"]
[Result "0-1"]
[WhiteElo "1663"]
[BlackElo "961"]
[TimeControl "300"]
[EndTime "12:12:34 PDT"]
[Termination "manthanit won by checkmate"]

1. e4 {[%clk 0:04:59]} 1... e5 {[%clk 0:04:56]} 2. Nf3 {[%clk 0:04:58.2]} 2...
Nc6 {[%clk 0:04:53.8]} 3. d4 {[%clk 0:04:57.2]} 3... exd4 {[%clk 0:04:52.5]} 4.
Bc4 {[%clk 0:04:56.6]} 4... d6 {[%clk 0:04:48.6]} 5. O-O {[%clk 0:04:52.5]} 5...
Be6 {[%clk 0:04:45]} 6. Bxe6 {[%clk 0:04:46.7]} 6... fxe6 {[%clk 0:04:43.7]} 7.
Nxd4 {[%clk 0:04:46.6]} 7... Nxd4 {[%clk 0:04:41.8]} 8. Qxd4 {[%clk 0:04:46.5]}
8... Nf6 {[%clk 0:04:41.2]} 9. Bg5 {[%clk 0:04:44.1]} 9... Be7 {[%clk
0:04:39.9]} 10. Nc3 {[%clk 0:04:41.6]} 10... O-O {[%clk 0:04:39]} 11. Rad1
{[%clk 0:04:38.6]} 11... e5 {[%clk 0:04:36]} 12. Qc4+ {[%clk 0:04:29.8]} 12...
Kh8 {[%clk 0:04:34.4]} 13. Bxf6 {[%clk 0:04:28.1]} 13... Bxf6 {[%clk 0:04:33.3]}
14. Nd5 {[%clk 0:04:28]} 14... c6 {[%clk 0:04:28.8]} 15. Nxf6 {[%clk 0:04:25]}
15... Qxf6 {[%clk 0:04:28]} 16. Rd3 {[%clk 0:04:19.9]} 16... Rad8 {[%clk
0:04:25.7]} 17. Rfd1 {[%clk 0:04:17.7]} 17... Qxf2+ {[%clk 0:04:18.8]} 18. Kh1
{[%clk 0:04:08.6]} 18... Qf1+ {[%clk 0:04:16.7]} 19. Rxf1 {[%clk 0:04:07.9]}
19... Rxf1# {[%clk 0:04:15.7]} 0-1

[Event "Live Chess"]
[Site "Chess.com"]
[Date "2023.05.20"]
[Round "-"]
[White "Bob2pen"]
[Black "vovanada"]
[Result "1-0"]
[WhiteElo "1791"]
[BlackElo "811"]
[TimeControl "300"]
[EndTime "12:12:36 PDT"]
[Termination "Bob2pen won by resignation"]

1. c4 {[%clk 0:04:56.4]} 1... e6 {[%clk 0:04:54.5]} 2. g3 {[%clk 0:04:55]} 2...
d5 {[%clk 0:04:52.1]} 3. Bg2 {[%clk 0:04:53.9]} 3... dxc4 {[%clk 0:04:49]} 4. a4
{[%clk 0:04:52.1]} 4... Nf6 {[%clk 0:04:46.6]} 5. Nf3 {[%clk 0:04:51.2]} 5...
Bd6 {[%clk 0:04:40.1]} 6. O-O {[%clk 0:04:49.2]} 6... O-O {[%clk 0:04:37.7]} 7.
Na3 {[%clk 0:04:48.4]} 7... Bxa3 {[%clk 0:04:31.7]} 8. Rxa3 {[%clk 0:04:47]}
8... Nc6 {[%clk 0:04:27.5]} 9. Qc2 {[%clk 0:04:45.3]} 9... b6 {[%clk 0:04:14.4]}
10. Ne5 {[%clk 0:04:34.3]} 10... Nxe5 {[%clk 0:04:07]} 11. Bxa8 {[%clk
0:04:32.4]} 11... Ba6 {[%clk 0:03:56.5]} 12. Bg2 {[%clk 0:04:28.2]} 12... Nfg4
{[%clk 0:03:44.9]} 13. h3 {[%clk 0:04:21]} 13... Nf6 {[%clk 0:03:39.2]} 14. Rd1
{[%clk 0:04:15]} 14... c6 {[%clk 0:03:27.8]} 15. Qc3 {[%clk 0:04:07.5]} 15... b5
{[%clk 0:03:24.9]} 16. Qxe5 {[%clk 0:04:05]} 1-0

[Event "Live Chess"]
[Site "Chess.com"]
[Date "2023.05.20"]
[Round "-"]
[White "thrithik"]
[Black "Duke_of_Bebington"]
[Result "0-1"]
[WhiteElo "385"]
[BlackElo "1574"]
[TimeControl "300"]
[EndTime "12:12:37 PDT"]
[Termination "Duke_of_Bebington won by checkmate"]

1. e3 {[%clk 0:04:57.6]} 1... e5 {[%clk 0:04:50.4]} 2. Qf3 {[%clk 0:04:56.7]}
2... Nc6 {[%clk 0:04:46.9]} 3. Bc4 {[%clk 0:04:51.7]} 3... Nf6 {[%clk
0:04:44.5]} 4. Qe4 {[%clk 0:04:47.1]} 4... d5 {[%clk 0:04:36.2]} 5. d3 {[%clk
0:04:46.5]} 5... dxe4 {[%clk 0:04:34.8]} 6. dxe4 {[%clk 0:04:42.7]} 6... Nxe4
{[%clk 0:04:32.1]} 7. Nf3 {[%clk 0:04:36.1]} 7... Bb4+ {[%clk 0:04:23]} 8. Bd2
{[%clk 0:04:29.1]} 8... Bxd2+ {[%clk 0:04:21.1]} 9. Nbxd2 {[%clk 0:04:22.5]}
9... Nxd2 {[%clk 0:04:19.2]} 10. Nxd2 {[%clk 0:04:19.3]} 10... Qg5 {[%clk
0:04:13.2]} 11. g3 {[%clk 0:04:13]} 11... Bg4 {[%clk 0:04:06.2]} 12. f4 {[%clk
0:04:12.4]} 12... exf4 {[%clk 0:04:02.5]} 13. exf4 {[%clk 0:04:10.2]} 13... Qe7+
{[%clk 0:03:58.9]} 14. Kf2 {[%clk 0:04:06.1]} 14... O-O-O {[%clk 0:03:54]} 15.
h3 {[%clk 0:04:05.5]} 15... Rxd2+ {[%clk 0:03:50.3]} 16. Kg1 {[%clk 0:03:55.9]}
16... Qe3+ {[%clk 0:03:48.2]} 17. Kf1 {[%clk 0:03:44.8]} 17... Qf2# {[%clk
0:03:48.1]} 0-1

[Event "Live Chess"]
[Site "Chess.com"]
[Date "2023.05.20"]
[Round "-"]
[White "smoggyrabbit"]
[Black "AttackingSnowLeopard"]
[Result "1-0"]
[WhiteElo "1635"]
[BlackElo "2006"]
[TimeControl "300"]
[EndTime "12:13:03 PDT"]
[Termination "smoggyrabbit won by resignation"]

1. d4 {[%clk 0:04:59]} 1... d5 {[%clk 0:04:58.1]} 2. Nf3 {[%clk 0:04:58.1]} 2...
Nf6 {[%clk 0:04:56.7]} 3. e3 {[%clk 0:04:57.2]} 3... Bg4 {[%clk 0:04:54.2]} 4.
Nbd2 {[%clk 0:04:54.9]} 4... e6 {[%clk 0:04:53.4]} 5. h3 {[%clk 0:04:53.6]} 5...
Bh5 {[%clk 0:04:51.9]} 6. g4 {[%clk 0:04:52.3]} 6... Bg6 {[%clk 0:04:50.6]} 7.
Ne5 {[%clk 0:04:51.3]} 7... Nbd7 {[%clk 0:04:49.2]} 8. h4 {[%clk 0:04:40.6]}
8... Nxg4 {[%clk 0:04:14.1]} 9. Qxg4 {[%clk 0:04:27.1]} 9... Nxe5 {[%clk
0:04:11.5]} 10. dxe5 {[%clk 0:04:26.1]} 10... Qd7 {[%clk 0:04:07.2]} 11. Nb3
{[%clk 0:03:56.1]} 11... O-O-O {[%clk 0:04:00]} 12. Bd2 {[%clk 0:03:54.5]} 12...
Bxc2 {[%clk 0:03:57]} 13. Rc1 {[%clk 0:03:51.1]} 13... Bxb3 {[%clk 0:03:48.8]}
14. axb3 {[%clk 0:03:49.3]} 14... h5 {[%clk 0:03:47.5]} 15. Qd4 {[%clk
0:03:41.7]} 15... c5 {[%clk 0:03:45.2]} 16. b4 {[%clk 0:03:30.8]} 16... c4
{[%clk 0:03:35.9]} 17. Qxa7 {[%clk 0:03:27]} 17... Qb5 {[%clk 0:03:34]} 18. Qa5
{[%clk 0:03:10.1]} 18... Qxa5 {[%clk 0:03:28.4]} 19. bxa5 {[%clk 0:03:09.3]}
19... Kb8 {[%clk 0:03:28]} 20. Be2 {[%clk 0:03:03.6]} 20... Rc8 {[%clk
0:03:26.2]} 21. O-O {[%clk 0:02:57.7]} 21... g6 {[%clk 0:03:25.4]} 22. Kg2
{[%clk 0:02:43.1]} 22... Be7 {[%clk 0:03:23]} 23. Rh1 {[%clk 0:02:40.3]} 23...
Rc5 {[%clk 0:03:19.4]} 24. f4 {[%clk 0:02:38.6]} 24... Rb5 {[%clk 0:03:18.3]}
25. Bc3 {[%clk 0:02:33.8]} 25... Bc5 {[%clk 0:03:16.7]} 26. Kf3 {[%clk
0:02:28.4]} 26... Rb3 {[%clk 0:03:13.9]} 27. Bd1 {[%clk 0:02:11]} 27... Rb5
{[%clk 0:03:09.9]} 28. Ba4 {[%clk 0:02:09.6]} 1-0